Cogmind - Beta 14 *** ADVENTURER MODE // 2024.11.01 @ 10:51:47 // Winter2022/Polymind Player: Timeslice Result: Destroyed by P-70 Sage with High-powered Shock Rifle Performance ------------- Evolutions (5) 2500 Regions Visited (10) 2000 Robots Destroyed (100) 500 Value Destroyed (4320) 4320 Prototype IDs (4) 80 Alien Tech Used (0) 0 Bonus (8591) 8591 TOTAL SCORE: 17911 Bonus ------- Polymind Skill 6841 Pacifist 200 High Alert Combat Kills 60 Follower Combat Kills 310 Entered Garrisons 200 Used RIF Installer 500 Met R17 at Cetus 500 Friendly Fire -20 Cogmind --------- Core Integrity 0/1000 Matter 64/100 Energy 242/265 System Corruption 8% Temperature Cool (23) Movement Core (350) Ox6 Location -5/Factory Parts ------- > --- POWER (1) -------- Neutrino Core > --- PROPULSION (2) --- (None) > --- UTILITY (3) ------ Advanced Heat Sink Advanced Heat Sink > --- WEAPON (2) ------- Wave Gun > --- INVENTORY (1) ---- (None) Peak State ------------ > --- POWER ------------ Reinforced Deuterium Engine Reinforced Deuterium Engine > --- PROPULSION ------- Improved Medium Treads Improved Medium Treads Improved Medium Treads > --- UTILITY ---------- Improved Cooling System Improved Cooling System Coolant Injector Layered Medium Armor Plating Medium Reflective Plating Dynamic Insulation System > --- WEAPON ----------- Heavy Plasma Cannon Heavy Machine Gun Magnetic Acceleration Cannon > --- INVENTORY -------- (None) [Rating: 63] Favorites ----------- Power Improved Deuterium Engine Engine Improved Deuterium Engine Power Core Neutrino Core Reactor Quantum Reactor Propulsion Light Treads Treads Light Treads Leg Carbon-fiber Leg Wheel Compact Wheel Hover Unit Gravmag System Utility Improved Heat Sink Device Improved Heat Sink Storage Small Storage Unit Processor Target Analyzer Protection Improved Light Armor Plating Weapon Flak Gun Energy Gun Gatling Laser Energy Cannon Heavy Plasma Cannon Ballistic Gun Flak Gun Ballistic Cannon Magnetic Acceleration Cannon Special Weapon Remote Datajack Build | -11 -10 -9 -8 -7 -6 -6 -6 -5 -5 -5 ------- Run | Yrd Mat Mat Mat Fac Fac Ext Cet Fac Gar Fac Slots Evolved . | . . . . . . . . . . . Power . | . . . . . . . . . . . Propulsion . | . . . . . . . . . . . Utility . | . . . . . . . . . . . Weapon . | . . . . . . . . . . . Parts Attached . | . . . . . . . . . . . Power . | . . . . . . . . . . . Engine . | . . . . . . . . . . . Core . | . . . . . . . . . . . Reactor . | . . . . . . . . . . . Propulsion . | . . . . . . . . . . . Treads . | . . . . . . . . . . . Leg . | . . . . . . . . . . . Wheel . | . . . . . . . . . . . Hover . | . . . . . . . . . . . Flight . | . . . . . . . . . . . Utility . | . . . . . . . . . . . Device . | . . . . . . . . . . . Storage . | . . . . . . . . . . . Processor . | . . . . . . . . . . . Hackware . | . . . . . . . . . . . Protection . | . . . . . . . . . . . Artifact . | . . . . . . . . . . . Weapon . | . . . . . . . . . . . Energy Gun . | . . . . . . . . . . . Energy Cannon . | . . . . . . . . . . . Ballistic Gun . | . . . . . . . . . . . Ballistic Cannon . | . . . . . . . . . . . Launcher . | . . . . . . . . . . . Special Weapon . | . . . . . . . . . . . Impact Weapon . | . . . . . . . . . . . Slashing Weapon . | . . . . . . . . . . . Piercing Weapon . | . . . . . . . . . . . Special Melee Weapon . | . . . . . . . . . . . Unidentified Prototypes . | . . . . . . . . . . . Parts Lost 55 | . . . . 7 . 10 11 . 23 4 Power 8 | . . . . 2 . 1 . . 5 . Propulsion 15 | . . . . 1 . 2 3 . 7 2 Utility 17 | . . . . 1 . 4 5 . 6 1 Weapon 15 | . . . . 3 . 3 3 . 5 1 Highest Loss Streak 20 | . . . . 3 . 8 10 . 20 4 To Critical Strikes 2 | . . . . . . . 2 . . . Average Slot Usage (%) 95 | . 100 98 100 95 100 99 89 82 65 96 Engine 9 | . 20 13 12 9 12 12 7 4 7 . Core 1 | . . . . 1 . . . . . 11 Treads 21 | . . 20 25 22 25 24 16 8 1 22 Leg 1 | . . . . . . . . . 22 1 Device 24 | . 20 23 25 24 25 25 23 13 17 24 Protection 10 | . . 9 12 9 12 12 12 8 . 10 Energy Gun 11 | . . 9 12 12 12 9 5 8 14 12 Ballistic Gun 10 | . . 9 12 10 12 11 9 8 . 11 Peak Build Rating 63 | 5 5 11 11 31 23 63 63 57 63 36 Average Rating 24 | 4 5 9 11 21 23 29 60 44 16 34 On Entrance 19 | . 5 5 11 11 23 23 63 57 . 12 Naked Turns 71 | . . 1 . 2 . 9 3 . 56 . Heaviest Build 75 | 9 9 18 18 23 23 75 75 39 35 33 Greatest Support 90 | 32 32 40 40 40 40 90 90 80 60 46 Greatest Overweight (x) 11 | . . . . 1 . . 1 . 11 1 Average Overweight (x) . | . . . . . . . . . . . Largest Inventory Capacity 5 | 4 4 4 1 5 1 1 1 1 1 1 Average Capacity 1 | 3 4 1 1 1 1 . . . . 1 Most Carried 4 | 4 4 4 . . . . . . . . Average Carried . | 2 4 . . . . . . . . . Final Capacity 4 | 4 4 1 1 1 1 1 1 . 1 1 Final Carried 4 | 4 4 . . . . . . . . . Class Distribution -------------------- 82% | Sentry 6% | Behemoth 4% | Grunt Dominant Class ---------------- Recycler | -10/Materials Sentry | -9/Materials Sentry | -8/Materials Sentry | -7/Factory Sentry | -6/Factory Sentry | -6/Extension Behemoth | -6/Cetus Sentry | -5/Factory Grunt | -5/Garrison Sentry | -5/Factory Resources | -11 -10 -9 -8 -7 -6 -6 -6 -5 -5 -5 ----------- Run | Yrd Mat Mat Mat Fac Fac Ext Cet Fac Gar Fac Matter Collected 1078 | . . 30 81 50 . 380 357 . 96 84 Remotely . | . . . . . . . . . . . Salvage Created 2664 | . . 70 393 178 . 603 385 . 579 456 Parts 186 | . . 6 16 25 . 34 23 . 45 37 Haulers Intercepted . | . . . . . . . . . . . Recyclers Shooed . | . . . . . . . . . . . Parts Field Recycled . | . . . . . . . . . . . Retrieved Matter . | . . . . . . . . . . . Parts Self-Destructed . | . . . . . . . . . . . Prevented . | . . . . . . . . . . . Kills | -11 -10 -9 -8 -7 -6 -6 -6 -5 -5 -5 ------- Run | Yrd Mat Mat Mat Fac Fac Ext Cet Fac Gar Fac Combat Hostiles Destroyed 86 | . . 4 6 7 . 18 12 . 28 11 Melee 1 | . . . . . . . . . 1 . Guns 70 | . . 4 6 5 . 15 10 . 19 11 Cannons 11 | . . . . . . 3 2 . 6 . Classes Destroyed 10 | . . 2 3 2 . 3 . . . . Worker 2 | . . 1 . . . 1 . . . . Builder 4 | . . . 1 . . 3 . . . . Recycler 1 | . . . . . . 1 . . . . Watcher 9 | . . . 4 1 . 2 2 . . . Swarmer 35 | . . 4 3 . . . 3 . 22 3 Grunt 17 | . . . . . . 8 3 . 5 1 Sentry 14 | . . . 3 2 . 9 . . . . Hunter 1 | . . . . 1 . . . . . . Programmer 11 | . . . . 4 . . . . . 7 Behemoth 2 | . . . . . . 1 . . 1 . Cetus Guard 6 | . . . . . . . 6 . . . Best Kill Streak 16 | . . 3 4 1 . 4 6 . 16 3 Combat Bots Only 16 | . . 2 3 1 . 4 6 . 16 3 Max Kills in Single Turn 2 | . . 2 2 1 . 1 2 . 2 2 Gunslinging 1 | . . . . . . . . . . 1 Exploded . | . . . . . . . . . . . Melee 1 | . . . . . . . . . 1 . Uniques/NPCs Destroyed . | . . . . . . . . . . . Combat | -11 -10 -9 -8 -7 -6 -6 -6 -5 -5 -5 -------- Run | Yrd Mat Mat Mat Fac Fac Ext Cet Fac Gar Fac Hostile Shots Fired 1106 | . . 14 31 104 . 339 161 1 382 74 Missed 262 | . . 5 2 34 . 108 24 . 83 6 Damage Taken 11331 | . . 51 298 674 . 2134 3086 16 4017 1055 Core 1983 | . . 5 51 181 . 404 328 16 855 143 Absorbed by Shields . | . . . . . . . . . . . Ignored by Resistances 2687 | . . 18 84 76 . 626 597 4 988 294 Core Remaining (%) 79 | 100 100 98 90 74 . . 13 . . . Volleys Fired 296 | . . 10 32 25 2 58 60 . 74 35 Largest 3 | . . 2 2 2 2 3 3 . 3 2 Hottest 173 | . . 79 79 108 108 173 173 . 173 114 Shots Fired 547 | . . 20 64 47 3 116 134 . 98 65 Gun 446 | . . 20 64 47 3 91 82 . 74 65 Cannon 101 | . . . . . . 25 52 . 24 . Launcher . | . . . . . . . . . . . Special . | . . . . . . . . . . . Kinetic 266 | . . 10 32 15 2 68 83 . 26 30 Thermal 264 | . . 10 32 15 1 48 51 . 72 35 Explosive . | . . . . . . . . . . . Electromagnetic 17 | . . . . 17 . . . . . . Robot Hit Streak 29 | . . 6 15 11 9 29 22 . 18 22 Robot Miss Streak 7 | . . 3 3 3 4 6 2 . 7 1 Penetration Max 1 | . . . . . . . 1 . . 1 Secondary Targets 9 | . . . 2 . . 3 2 . . 2 Max Gunslinging Chain 1 | . . . 1 . . 1 1 . . 1 Shots Hit Robots 418 | . . 13 41 38 3 92 109 . 66 56 Core Hits 244 | . . 5 19 23 2 101 37 . 37 20 Critical Kills 4 | . . . . . . 1 2 . . 1 Critical Parts Destroyed 4 | . . . . . . . 4 . . . Critical Strikes 17 | . . 1 2 . . 1 7 . 3 3 Burn 7 | . . 1 2 . . . . . 2 2 Meltdown 1 | . . . . . . 1 . . . . Destroy 8 | . . . . . . . 7 . . 1 Blast 1 | . . . . . . . . . 1 . Melee Attacks . | . . . . . . . . . . . Impact . | . . . . . . . . . . . Slashing . | . . . . . . . . . . . Piercing . | . . . . . . . . . . . Sneak Attacks . | . . . . . . . . . . . Combat Hostiles . | . . . . . . . . . . . Follow-up Attacks . | . . . . . . . . . . . Damage Inflicted 10747 | . . 207 645 666 55 2734 3163 . 1637 1640 Guns 8250 | . . 207 645 623 55 2118 1821 . 1141 1640 Cannons 2431 | . . . . . . 616 1342 . 473 . Explosions 43 | . . . . 43 . . . . . . Melee . | . . . . . . . . . . . Ramming 23 | . . . . . . . . . 23 . Kinetic 5034 | . . 105 237 162 34 1352 1975 . 444 725 Thermal 5479 | . . 102 408 293 21 1382 1188 . 1170 915 Explosive . | . . . . . . . . . . . Electromagnetic 211 | . . . . 211 . . . . . . Impact . | . . . . . . . . . . . Slashing . | . . . . . . . . . . . Piercing . | . . . . . . . . . . . Highest Corruption 8 | . . . 1 . . . . . . 8 Average Corruption 2 | . . . 1 . . . . . . 2 Corruption Purged . | . . . . . . . . . . . Corruption Blocked . | . . . . . . . . . . . Effects 24 | . . . 2 . . . . . . 22 Message Errors 9 | . . . 1 . . . . . . 8 Matter Fused 3 | . . . . . . . . . . 3 Heat Flow Errors 2 | . . . . . . . . . . 2 Energy Discharges 3 | . . . . . . . . . . 3 Parts Fused 1 | . . . . . . . . . . 1 Data Loss (minor) 3 | . . . 1 . . . . . . 2 Data Loss (major) 1 | . . . . . . . . . . 1 Misfires 1 | . . . . . . . . . . 1 Alerts 1 | . . . . . . . . . . 1 Overload Shots . | . . . . . . . . . . . Overflow Damage 34 | . . . . . . 8 12 . 14 . Projectiles 34 | . . . . . . 8 12 . 14 . Explosions . | . . . . . . . . . . . Melee . | . . . . . . . . . . . Knockbacks 6 | . . . . . . 1 . . 5 . Impact . | . . . . . . . . . . . Kinetic 5 | . . . . . . 1 . . 4 . Secondary 1 | . . . . . . . . . 1 . Self-Inflicted Damage 52 | . . . . 52 . . . . . . Shots 1 | . . . . 1 . . . . . . Rammed . | . . . . . . . . . . . Targets Rammed 26 | . . . . . . . . . 26 . Kicked 26 | . . . . . . . . . 26 . Crushed . | . . . . . . . . . . . Highest Temperature 298 | . . . 23 12 . 168 298 6 283 182 Average Temperature 55 | . . . 5 5 . 34 75 4 92 34 Received Heat Transfer 2736 | . . . 108 126 . 861 691 9 941 . Siege Activations . | . . . . . . . . . . . Robots Corrupted 3 | . . . . 2 . . . . 1 . Combat Hostiles 3 | . . . . 2 . . . . 1 . Parts Fried 1 | . . . . 1 . . . . . . Impact Corruptions 1 | . . . . . . . . . 1 . Robots Melted 2 | . . . . . . 1 . . 1 . Combat Hostiles 1 | . . . . . . . . . 1 . Parts Melted 25 | . . 1 8 1 . 9 1 . 4 1 Heat Transferred 10118 | . . 333 1147 560 50 2775 1716 . 2205 1332 Parts Sabotaged . | . . . . . . . . . . . Parts Stolen . | . . . . . . . . . . . Parts Stripped . | . . . . . . . . . . . Power Chain Reactions 1 | . . . . 1 . . . . . . Alert | -11 -10 -9 -8 -7 -6 -6 -6 -5 -5 -5 ------- Run | Yrd Mat Mat Mat Fac Fac Ext Cet Fac Gar Fac Peak Influence 578 | . . 70 146 89 9 266 176 49 578 362 Initial 262 | . . . . 34 . 3 2 35 20 262 Average 52 | . . 21 21 16 4 58 37 35 298 129 Maximum Alert Level 2 | . . . . . . 1 . . 2 1 Low Security (%) 91 | 100 100 100 100 100 100 93 100 100 40 61 Level 1 6 | . . . . . . 6 . . 21 38 Level 2 1 | . . . . . . . . . 37 . Level 3 . | . . . . . . . . . . . Level 4 . | . . . . . . . . . . . Level 5 . | . . . . . . . . . . . High Security . | . . . . . . . . . . . Max Security . | . . . . . . . . . . . Squads Dispatched 17 | . . . 1 6 . 4 . 2 . 4 Investigation 5 | . . . 1 . . 2 . 2 . . Extermination 10 | . . . . 6 . . . . . 4 Reinforcement 2 | . . . . . . 2 . . . . Assault . | . . . . . . . . . . . Garrison . | . . . . . . . . . . . Intercept . | . . . . . . . . . . . Searches Triggered . | . . . . . . . . . . . Construction Impeded . | . . . . . . . . . . . Haulers Reinforced . | . . . . . . . . . . . Active Scanning Responses . | . . . . . . . . . . . Cargo Convoy Interrupts 1 | . . . . . . . . . . 1 Stealth | -11 -10 -9 -8 -7 -6 -6 -6 -5 -5 -5 --------- Run | Yrd Mat Mat Mat Fac Fac Ext Cet Fac Gar Fac Distress Signals 7 | . . . . . . 2 3 2 . . Communications Jammed . | . . . . . . . . . . . Distress Signals . | . . . . . . . . . . . Times Spotted 179 | . . 6 12 9 1 39 22 6 72 12 Peak Tracking Total 18 | . . 3 3 2 1 9 5 5 18 4 Tactical Retreats 9 | . . 1 . . . 1 2 . 5 . Traps | -11 -10 -9 -8 -7 -6 -6 -6 -5 -5 -5 ------- Run | Yrd Mat Mat Mat Fac Fac Ext Cet Fac Gar Fac Traps Triggered 3 | . . . 2 . . . . . 1 . Indirectly . | . . . . . . . . . . . Trap Hack Attempts . | . . . . . . . . . . . Triggered . | . . . . . . . . . . . Disarmed . | . . . . . . . . . . . Reprogrammed . | . . . . . . . . . . . Reused . | . . . . . . . . . . . Traps Extracted . | . . . . . . . . . . . Installed . | . . . . . . . . . . . Triggered 1 | . . . . . . . . . . 1 Machines | -11 -10 -9 -8 -7 -6 -6 -6 -5 -5 -5 ---------- Run | Yrd Mat Mat Mat Fac Fac Ext Cet Fac Gar Fac Machines Disabled 5 | . . . 1 . . 3 1 . . . Max in Single Turn 1 | . . . 1 . . 1 1 . . . Machines Repaired . | . . . . . . . . . . . Machines Dismantled . | . . . . . . . . . . . Machines Sabotaged . | . . . . . . . . . . . Overloaded Fab Kills . | . . . . . . . . . . . Hacking | -11 -10 -9 -8 -7 -6 -6 -6 -5 -5 -5 --------- Run | Yrd Mat Mat Mat Fac Fac Ext Cet Fac Gar Fac Machines Accessed 35 | . . 3 7 5 1 9 2 2 2 4 Terminals 31 | . . 3 7 3 1 9 2 1 2 3 Fabricators 2 | . . . . 1 . . . . . 1 Repair Stations 1 | . . . . 1 . . . . . . Recycling Units . | . . . . . . . . . . . Scanalyzers . | . . . . . . . . . . . Garrison Access 1 | . . . . . . . . 1 . . Total Hacks 91 | . . 10 21 11 2 23 4 6 4 10 Successful 47 | . . 3 14 5 2 12 2 2 3 4 Failed 44 | . . 7 7 6 . 11 2 4 1 6 Catastrophic 7 | . . . 1 1 . 3 1 . . 1 Database Lockouts . | . . . . . . . . . . . Manual 67 | . . 10 19 5 2 15 . 3 4 9 Terminals 82 | . . 10 21 7 2 23 4 3 4 8 Fabricators 4 | . . . . 2 . . . . . 2 Repair Stations 2 | . . . . 2 . . . . . . Recycling Units . | . . . . . . . . . . . Scanalyzers . | . . . . . . . . . . . Garrison Access 3 | . . . . . . . . 3 . . Terminal Hacks 17 | . . . 5 2 . 6 2 . 1 1 Record 2 | . . . 1 . . . 1 . . . Robot Analysis 5 | . . . 3 . . 2 . . . . Open Door 2 | . . . . . . 1 1 . . . Open DSF 2 | . . . . 2 . . . . . . Terminal Index 1 | . . . . . . 1 . . . . Locate Traps 3 | . . . . . . 2 . . . 1 Recall Investigation 1 | . . . 1 . . . . . . . Garrison Registry 1 | . . . . . . . . . 1 . Fabricator Hacks . | . . . . . . . . . . . Repair Station Hacks . | . . . . . . . . . . . Recycling Unit Hacks . | . . . . . . . . . . . Scanalyzer . | . . . . . . . . . . . Garrison Access Hacks 1 | . . . . . . . . 1 . . Unlock Access 1 | . . . . . . . . 1 . . Unauthorized Hacks 29 | . . 3 9 3 2 6 . 1 2 3 Terminals 26 | . . 3 9 1 2 6 . 1 2 2 Assimilate 1 | . . . 1 . . . . . . . Botnet 21 | . . 2 7 1 1 5 . 1 2 2 Operators 4 | . . 1 1 . 1 1 . . . . Fabricators 3 | . . . . 2 . . . . . 1 Fabnet 2 | . . . . 1 . . . . . 1 Haulers 1 | . . . . 1 . . . . . . Repair Stations . | . . . . . . . . . . . Recycling Units . | . . . . . . . . . . . Scanalyzers . | . . . . . . . . . . . Garrison Access . | . . . . . . . . . . . Data Cores Recovered . | . . . . . . . . . . . Used . | . . . . . . . . . . . Hacking Detections 31 | . . 3 7 4 . 9 1 2 2 3 Full Trace Events 5 | . . . 1 . . 2 . 2 . . Feedback Events . | . . . . . . . . . . . Feedback Blocked . | . . . . . . . . . . . Robot Schematics Acquired . | . . . . . . . . . . . Robots Built . | . . . . . . . . . . . Authchips . | . . . . . . . . . . . Time . | . . . . . . . . . . . Total Robot Build Rating . | . . . . . . . . . . . Part Schematics Acquired . | . . . . . . . . . . . Parts Built . | . . . . . . . . . . . Authchips . | . . . . . . . . . . . Time . | . . . . . . . . . . . Total Part Build Rating . | . . . . . . . . . . . Parts Repaired . | . . . . . . . . . . . Time . | . . . . . . . . . . . Parts Recycled . | . . . . . . . . . . . Recycled Matter . | . . . . . . . . . . . Retrieved Matter . | . . . . . . . . . . . Retrieved Components . | . . . . . . . . . . . Parts Scanalyzed . | . . . . . . . . . . . Part Schematics Acquired . | . . . . . . . . . . . Parts Damaged . | . . . . . . . . . . . Bothacking | -11 -10 -9 -8 -7 -6 -6 -6 -5 -5 -5 ------------ Run | Yrd Mat Mat Mat Fac Fac Ext Cet Fac Gar Fac Used RIF Installer 1 | . . . . . . . . . 1 . Robots Hacked 15 | . . 1 . 2 . 3 1 2 5 1 Non-combat 1 | . . . . . . . . 1 . . Combat 14 | . . 1 . 2 . 3 1 1 5 1 Robot Hacks Applied 17 | . . 1 . 4 . 3 . 2 5 2 map_route 1 | . . . . . . . . 1 . . mark_security 1 | . . . . . . . . 1 . . find_shortcuts 12 | . . 1 . 2 . 3 . . 5 1 find_garrison 3 | . . . . 2 . . . . . 1 Relay Couplers Released . | . . . . . . . . . . . Fabnet Peak Effective % 3 | . . . . . 3 3 3 1 1 1 Autooverrided 2 | . . . . . . . 1 1 . . Robots Rewired 19 | . . . . . . 18 . 1 . . Allies Hacked . | . . . . . . . . . . . Hacks Repelled . | . . . . . . . . . . . Allies | -11 -10 -9 -8 -7 -6 -6 -6 -5 -5 -5 -------- Run | Yrd Mat Mat Mat Fac Fac Ext Cet Fac Gar Fac Total Allies 24 | . . . 1 . . 20 1 2 . . Largest Group 9 | . . . 1 . . 9 6 1 . . Highest-Rated Group 252 | . . . 10 . . 252 160 29 . . Highest-Rated Ally 39 | . . . 10 . . 39 31 29 . . Total Orders . | . . . . . . . . . . . Ally Attacks 101 | . . . . . . 85 13 3 . . Total Damage 1597 | . . . . . . 1355 203 39 . . Kills 9 | . . . . . . 8 1 . . . Allies Corrupted . | . . . . . . . . . . . Allies Melted . | . . . . . . . . . . . Intel | -11 -10 -9 -8 -7 -6 -6 -6 -5 -5 -5 ------- Run | Yrd Mat Mat Mat Fac Fac Ext Cet Fac Gar Fac Robot Analysis Total 14 | 1 . 2 3 2 . 3 1 . 1 1 Derelict Logs Recovered . | . . . . . . . . . . . Drone Launches . | . . . . . . . . . . . Drone Recoveries . | . . . . . . . . . . . Exploration | -11 -10 -9 -8 -7 -6 -6 -6 -5 -5 -5 ------------- Run | Yrd Mat Mat Mat Fac Fac Ext Cet Fac Gar Fac Turns Passed 15160 | 31 105 1497 3036 3796 282 2411 1022 387 574 2019 Spaces Moved 4025 | 31 106 415 500 668 174 663 520 310 367 271 Core 138 | 8 . 1 . 3 . 12 5 3 106 . Treads 2473 | . . 136 500 178 174 651 515 169 2 148 Legs 382 | . . . . . . . . . 259 123 Wheels 407 | 23 106 278 . . . . . . . . Hover 625 | . . . . 487 . . . 138 . . Flight . | . . . . . . . . . . . Fastest Speed 50 | 50 100 50 160 50 160 50 50 50 50 120 Average Speed 132 | 87 100 114 160 99 160 158 159 112 102 142 Slowest Speed 600 | 100 100 160 160 160 160 160 240 160 600 240 Overloaded Moves . | . . . . . . . . . . . Propulsion Burnouts . | . . . . . . . . . . . Robots Hopped . | . . . . . . . . . . . Cave-ins Triggered . | . . . . . . . . . . . Exploration Rate (%) 31 | 4 31 33 46 14 6 64 93 12 38 8 Regions Visited 10 Branch Regions 2 Pre-discovered Areas . | . . . . . . . . . . . Known Exits Taken 1 | . . . . . . . . 1 . . Unknown Exits Taken 8 | 1 1 1 1 1 1 1 1 . . . Scrap Searched . | . . . . . . . . . . . Spaces Dug 3 | . . . . . . 3 . . . . Terrain Destroyed 33 | . . . . 5 . 3 19 . . 6 Melee . | . . . . . . . . . . . Projectile 28 | . . . . . . 3 19 . . 6 AOE 5 | . . . . 5 . . . . . . Terrain Rammed . | . . . . . . . . . . . Walls Destroyed . | . . . . . . . . . . . Machines Disabled . | . . . . . . . . . . . Actions | -11 -10 -9 -8 -7 -6 -6 -6 -5 -5 -5 --------- Run | Yrd Mat Mat Mat Fac Fac Ext Cet Fac Gar Fac Total 13326 | 34 105 1417 2672 3745 175 1911 602 347 469 1849 Wait 8862 | . . 993 2141 3043 . 1084 23 34 1 1543 Move 4015 | 30 105 414 499 667 173 662 519 309 366 271 Hop . | . . . . . . . . . . . Pick Up 4 | 4 . . . . . . . . . . Fast Attach . | . . . . . . . . . . . Attach . | . . . . . . . . . . . Detach . | . . . . . . . . . . . Swap . | . . . . . . . . . . . Drop . | . . . . . . . . . . . Fire 296 | . . 10 32 25 2 58 60 . 74 35 Melee . | . . . . . . . . . . . Ram . | . . . . . . . . . . . Kick 26 | . . . . . . . . . 26 . Crush . | . . . . . . . . . . . Escape Stasis . | . . . . . . . . . . . Rewire 114 | . . . . 1 . 107 . 4 2 . Trap . | . . . . . . . . . . . Miscellaneous 9 | . . . . 9 . . . . . . Route ------- -11/Scrapyard -10/Materials -9/Materials (discovered 3 exits: *Mat x2 / [*Min]) -8/Materials -7/Factory (discovered 2 exits: *Fac / [*Low]) -6/Factory (discovered 2 exits: *Fac / *Ext) -6/Extension (discovered 2 exits: *Fac / *Cet) -6/Cetus (discovered 3 exits: *Fac x2 / [*Arc]) -5/Factory (discovered 2 exits: [Fac] / Gar) -5/Garrison (discovered 4 exits: *Fac x4) -5/Factory History --------- Turn | Location | Event 4 | -11/Scrapyard | Discovered new exit (range 14) 32 | -11/Scrapyard | Entered Materials 112 | -10/Materials | Discovered new exit (range 9) 137 | -10/Materials | Entered another Materials area 224 | -9/Materials | Discovered new exit (range 14) 897 | -9/Materials | Discovered new exit (range 13) 1563 | -9/Materials | Discovered new exit (range 12) 1634 | -9/Materials | Entered another Materials area 4659 | -8/Materials | Discovered new exit (range 4) 4670 | -8/Materials | Entered Factory 5527 | -7/Factory | Lost 3 parts (1n2w) 5683 | -7/Factory | Discovered new exit (range 2) 6056 | -7/Factory | Discovered new exit (range 12) 8466 | -7/Factory | Entered another Factory area 8658 | -6/Factory | Discovered new exit (range 16) 8724 | -6/Factory | Discovered new exit (range 15) 8748 | -6/Factory | Entered Extension 9541 | -6/Extension | Lost 4 allies 10137 | -6/Extension | Rescued a captive Derelict 10147 | -6/Extension | Rescued a captive Derelict 10394 | -6/Extension | Lost 4 allies 10710 | -6/Extension | Spotted B-75 Beast 10720 | -6/Extension | Spotted B-75 Beast 10735 | -6/Extension | Took control of B-75 Beast 10747 | -6/Extension | Destroyed B-75 Beast 10759 | -6/Extension | Lost 8 parts (1p2n3u2w) 11112 | -6/Extension | Discovered new exit (range 16) 11114 | -6/Extension | Discovered new exit (range 15) 11159 | -6/Extension | Entered Cetus 11159 | -6/Cetus | Accompanied by 6 allies 11182 | -6/Cetus | Spotted Cetus Guard 11183 | -6/Cetus | Spotted Cetus Guard 11185 | -6/Cetus | Spotted Cetus Guard 11186 | -6/Cetus | Spotted Cetus Guard 11199 | -6/Cetus | Destroyed Cetus Guard 11221 | -6/Cetus | Destroyed Cetus Guard 11246 | -6/Cetus | Lost 6 allies 11246 | -6/Cetus | Core integrity fell below 50% 11250 | -6/Cetus | Destroyed Cetus Guard 11463 | -6/Cetus | Discovered new exit (range 16) 11603 | -6/Cetus | Discovered new exit (range 15) 11642 | -6/Cetus | Spotted Cetus Guard 11643 | -6/Cetus | Spotted Cetus Guard 11689 | -6/Cetus | Spotted Cetus Guard 11692 | -6/Cetus | Spotted Cetus Guard 11701 | -6/Cetus | Destroyed Cetus Guard 11717 | -6/Cetus | Spotted B-75 Beast 11720 | -6/Cetus | Took control of Cetus Guard 11726 | -6/Cetus | Destroyed Cetus Guard 11745 | -6/Cetus | Core integrity fell below 20% 11747 | -6/Cetus | Lost 10 parts (3n4u3w) 11752 | -6/Cetus | Destroyed Cetus Guard 11909 | -6/Cetus | Security sweep announced 12156 | -6/Cetus | Discovered new exit (range 15) 12164 | -6/Cetus | Met Revision 17 12181 | -6/Cetus | Entered Factory 12452 | -5/Factory | Spotted Cetus Guard 12452 | -5/Factory | Discovered new exit (range 56) 12567 | -5/Factory | Identified exit to Garrison 12568 | -5/Factory | Entered Garrison 12598 | -5/Garrison | Triggered checkpoint 12613 | -5/Garrison | Discovered new exit (range 60) 12613 | -5/Garrison | Discovered new exit (range 94) 12613 | -5/Garrison | Discovered new exit (range 59) 12613 | -5/Garrison | Discovered new exit (range 65) 12616 | -5/Garrison | Triggered checkpoint 12755 | -5/Garrison | Spotted B-75 Beast 12785 | -5/Garrison | Took control of B-75 Beast 12832 | -5/Garrison | Core integrity fell below 50% 12841 | -5/Garrison | Spotted B-75 Beast 12873 | -5/Garrison | Destroyed 16 combat bots 12889 | -5/Garrison | Lost 20 parts (4p6n5u5w) 12914 | -5/Garrison | Triggered checkpoint 12928 | -5/Garrison | Core integrity fell below 20% 12974 | -5/Garrison | Destroyed 8 combat bots 13000 | -5/Garrison | Destroyed B-75 Beast 13082 | -5/Garrison | Triggered checkpoint 13104 | -5/Garrison | Installed Relay Interface Framework 13142 | -5/Garrison | Entered Factory 14027 | -5/Factory | Cargo convoy interrupted 15161 | -5/Factory | Destroyed by P-70 Sage with High-powered Shock Rifle Last Messages --------------- 15127_ Slug penetrates P-70 Sage. 15130_ P-70 Sage destroyed. 15130_ Switching to secondary target: P-70 Sage. 15130_ Slug penetrates P-70 Sage. 15131_ Imp. Treads destroyed. 15133_ Acquired 50 Protomatter. 15133_ K-01 Serf collects debris. 15134_ System corrupted: Component data lost. 15135_ Slug penetrates P-70 Sage. 15136_ K-01 Serf collects debris. 15138_ Slug penetrates P-70 Sage. 15138_ Imp. Medium Armor Plating destroyed. 15140_ Imp. Treads destroyed. 15140_ K-01 Serf collects debris. 15141_ Slug penetrates P-70 Sage. 15141_ P-70 Sage destroyed. 15143_ Slug penetrates P-70 Sage. 15143_ P-70 Sage destroyed. 15152_ KE Penetrator destroyed. 15157_ %#GRVD6LHBOM13DJKKXZYP6Q Map ----- +----------------------------------------------------+ | ????# """" ##?? ??# #?????? | | ????# """" ###/##### #?????? | | ????# """" ^ #?????? | | ????# """" ^ #?????? | | ????# """" ! ^ #?????? | | ????# """" ^ #?????? | | ????# ^ #?????? | | ????# ^ #?????? | | ????# ### ############# #?????? | | ????????# #?????????????? ??????? | | #####+### #?????????????????????? | | # # #?????????????????????? | | # """"" # #?????????????????????? | | # ""T"" # #?????????????????????? | | # # #?????????????????????? | | # / # #???????????? ??????? | | # # #???????????# ??????? | | # """ # #?????????? ??????? | | # """ # #???????### ??????? | | # """ #% #??????? ???????? | | # + #?????? ?????????? | | # / # #?????? ???????????? | | #####+### ##???? #????????????? | | ????# ## *!##### #????????????? | | ????# ## !*=p[% #????????????? | | ????# !Y%=|% # #??????????? | | ????# ## !=!%! #?? ???????? | | ????# ## ###[#####?? ?????? | | ????# ########?# #?????? #????? | | ????# #????????# #?????? #????? | | ????# #????????# #?????? #????? | | ????# #????????# #?????? #????? | | ????# #?????#### #?????? #????? | | ????# #?????+ +?????# #????? | | ????# #?????# #?????# +????? | | #####+####### #?????# #????? | | # # #?????# #????? | | # """# #???### ###??? | | # ^ Y"# ##### #??? | | # """" """# #??? | | # """" # #??? | | # """" # T" #??? | | # """" + " #??? | | # # #??? | | # """" """" # #??? | | # """" """" # #??? | | # """" """" #####+#+## #??? | | # """" """" ## ############??? | | # ## #?????????????? | | ##########+### #?????????????? | +----------------------------------------------------+ Best States ------------- Heat Dissipation 84 Coolant Potential 65 Energy Generation 32 Energy Capacity 430 Matter Stores 200 Matter Capacity 200 Sight Range 18 Robot Scan Range 15 Terrain Scan Density 10 EM Shielding 2 Armor Coverage 450 Resistance: KI 20 Resistance: TH 20 Resistance: EX 70 Resistance: EM 95 Resistance: I 45 Resistance: S 20 Resistance: P 20 Evasion (%) 55 Target Analysis 5 Recoil Reduction 3 Offensive Hacking 10 Item Schematics ----------------- None Robot Schematics ------------------ None Fabricated ------------ Nothing Alien Tech Used ----------------- None Achievements -------------- None Challenges ------------ None Polymind | -11 -10 -9 -8 -7 -6 -6 -6 -5 -5 -5 ---------- Run | Yrd Mat Mat Mat Fac Fac Ext Cet Fac Gar Fac Hosts 16 | 1 . 2 . 2 . 3 1 1 5 1 Combat Hostiles 13 | . . 1 . 2 . 3 1 . 5 1 Allies . | . . . . . . . . . . . Unique Host Classes 7 | 1 . 2 . 1 . 1 . 1 1 . Average Host Suspicion 60 | 4 42 52 47 60 44 67 97 53 99 54 Unsuspicious Activity 8865 | 2 . 1081 2141 3022 . 1079 . 11 . 1529 Returns to Shadow 11 | . . 1 3 3 . 2 . . . 2 Fuzzy Dispatches 10 | . . . . 6 . . . . . 4 Protomatter Created 2051 | . . 10 5 141 . 797 530 17 297 254 Used 1057 | 5 . 28 . 91 . 322 114 23 400 74 Decayed 503 | . . . . 28 . 51 281 17 21 105 Highest Spend 220 | 5 . 23 . 51 . 220 114 23 220 74 Top 5 Hosts by Kills: Y-54 Guardian (-7/Factory: 12) Y-45 Defender (-9/Materials: 11) Y-64 Sentinel (-5/Factory: 11) B-75 Beast (-5/Garrison: 10) B-75 Beast (-6/Extension: 9) Game ------ Seed LightReactionWings Manual? 0 Play Time 01:29:06 Cumulative 143.4 hours Start 2024.11.01 @ 09:22:29 End 2024.11.01 @ 10:51:47 Sessions 1 Manual Loads 0 Difficulty Adventurer Special Mode Winter2022/Polymind Game No. 24 Rogue 0 Adventurer 24 Explorer 0 Win Type - Total 3 Types 2/0/0/1/0/0/0/0/0 Lore% 44 Gallery% 46 Achievement% 41 Wizard Run 0 Options --------- Layout 0 ASCII 0 Keyboard 0 Movement Numpad Keybinds 0 Fullscreen 1 Font 18/SmallcapsGlow Map View 76x50 Zoom Use 0% Tactical HUD 1 Map Filters NONE Filters NONE Steam 1 RUN: eaa1a1cb-dcbc-4216-802c-ef4072fafbb4